bitfinex-derivatives/quotes_ETHF0:USTF0_20250210
["timestamp","ask_amount","ask_price","bid_price","bid_amount"]
[1739192949250,1.196,2646.3,2645.8,3.2078]
[1739192949854,1.196,2646.3,2645.9,0.5927]
[1739192950451,1.196,2646.3,2646.0,0.5963]
[1739192951053,1.196,2646.3,2645.9,0.5927]
[1739192951255,4.00470544,2646.2,2645.9,0.5927]
[1739192952656,1.196,2646.3,2645.9,0.5927]
[1739192952853,1.196,2646.3,2645.9,1.1479]
[1739192953351,1.196,2646.3,2645.9,3.17083269]
[1739192953558,0.00566915,2646.5,2646.1,3.2078]
[1739192953753,0.00566915,2646.5,2646.2,0.5921]
[1739192954252,0.00566915,2646.5,2646.3,0.6035]
[1739192954448,0.00566915,2646.5,2646.4,0.5998]
[1739192957056,0.00566915,2646.5,2646.3,0.6035]
[1739192964161,0.00566915,2646.5,2646.0,0.5998]
[1739192964366,4.07920559,2646.4,2646.0,1.1955]
[1739192964955,4.07920559,2646.4,2646.0,0.5957]
[1739192965160,3.2078,2646.3,2646.0,0.5957]
[1739192965957,0.5941,2646.2,2646.0,0.5957]
[1739192966153,0.5773,2646.1,2646.0,0.5957]
[1739192969966,3.2078,2646.3,2646.0,0.5957]
[1739192970271,0.00566915,2646.5,2646.1,2.02293269]
[1739192970473,0.00566915,2646.5,2646.2,0.5758]
[1739192977671,0.00566915,2646.5,2646.0,0.5957]
[1739192977970,3.2078,2646.2,2646.0,0.5957]
[1739192978375,3.7928,2646.2,2646.0,0.5957]
[1739192979076,4.16359997,2646.1,2645.3,3.21346915]
[1739192979276,3.5859,2645.9,2645.3,0.00566915]
[1739192979477,0.5744,2645.8,2645.3,0.00566915]
[1739192979679,1.1594,2645.8,2645.3,40.80566915]
[1739192980279,1.1594,2645.8,2645.3,0.00566915]
[1739192981377,1.1594,2645.8,2645.3,3.21346915]
[1739192982776,1.1594,2645.8,2645.3,0.00566915]
[1739192983679,3.2078,2645.6,2645.3,0.00566915]
[1739192985878,5.60883269,2646.3,2645.3,3.21346915]
[1739192986081,1.1252,2646.2,2645.3,3.21346915]
[1739192986274,3.2078,2645.9,2645.3,3.21346915]
[1739192987185,3.2078,2645.9,2645.3,0.00566915]
[1739192987576,0.5876,2645.8,2645.3,0.00566915]
[1739192988683,3.2078,2645.9,2645.3,3.21346915]
[1739192990677,0.5876,2646.1,2645.3,3.21346915]
[1739192991878,2.02293269,2646.0,2645.3,3.21346915]
[1739192992183,4.53948,2645.9,2645.3,0.00566915]
[1739192992582,3.7837,2645.9,2645.3,0.00566915]
[1739192992778,0.7558,2645.8,2645.3,0.00566915]
[1739192992975,0.5887,2645.7,2645.3,0.00566915]
[1739192993175,1.1688,2645.7,2645.3,0.00566915]
[1739193000281,1.1688,2645.7,2645.3,3.21346915]
[1739193000575,3.2078,2645.9,2645.5,2.02293269]
[1739193000781,3.2078,2645.9,2645.3,3.21346915]
[1739193000976,0.5731,2645.8,2645.3,3.78796915]
[1739193001180,1.1349,2645.7,2645.3,0.58016915]
[1739193001985,1.513,2645.7,2645.3,0.58016915]
[1739193003481,3.2078,2645.6,2645.3,0.58016915]
[1739193003683,0.5692,2645.7,2645.3,0.58016915]
[1739193005389,0.5944,2645.6,2645.3,0.00566915]
[1739193006390,0.9725,2645.6,2645.3,0.00566915]
[1739193006688,3.2078,2645.4,2645.3,0.00566915]
[1739193006891,3.96371,2645.4,2645.3,0.00566915]
[1739193007093,4.89861,2645.4,2645.3,0.00566915]
[1739193007389,4.1427,2645.4,2645.3,0.00566915]
[1739193007890,4.1427,2645.4,2644.7,1.1731]
[1739193007891,8.37196794,2645.4,2644.7,1.1731]
[1739193009091,7.99386794,2645.4,2644.9,2.02293269]
[1739193009390,2.59213269,2645.7,2645.2,2.02293269]
[1739193009391,0.5692,2645.7,2645.2,2.02293269]
[1739193009587,0.5692,2645.7,2645.3,4.9786]
[1739193009987,3.2078,2646.0,2645.3,4.9786]
[1739193013994,4.38851144,2645.9,2644.9,4.98293269]
[1739193014190,4.95041144,2645.9,2645.0,1.7484]
[1739193014888,4.95041144,2645.9,2645.0,4.9562]
[1739193015988,0.7557,2646.2,2645.0,4.9562]
[1739193015989,0.00566915,2646.5,2645.8,3.2078]
[1739193016201,0.5826,2646.4,2646.1,3.2078]
[1739193016394,0.5826,2646.4,2645.9,0.5976]
[1739193016594,0.00566915,2646.5,2646.1,3.2078]
[1739193016899,0.00566915,2646.5,2646.2,1.1631]
[1739193017488,0.00566915,2646.5,2646.3,0.6]
[1739193017690,0.00566915,2646.5,2645.9,0.6098]
[1739193017890,0.00566915,2646.5,2646.1,0.00566915]
[1739193018098,0.98046915,2646.5,2646.1,0.00566915]
[1739193018294,3.2078,2646.4,2646.1,0.00566915]
[1739193018698,0.60236915,2646.5,2646.1,0.00566915]
[1739193019899,0.00566915,2646.5,2646.1,0.00566915]
[1739193020100,0.00566915,2646.5,2646.1,3.21346915]
[1739193020300,0.00566915,2646.5,2646.2,0.5944]
[1739193020496,0.00566915,2646.5,2646.4,3.2078]
[1739193021103,3.2078,2647.3,2646.4,9.7635]
[1739193021399,3.2078,2647.3,2646.6,2.02293269]
[1739193022304,0.00566915,2647.2,2646.7,3.8005]
[1739193022694,0.00566915,2647.2,2646.8,0.5976]
[1739193023004,1.17126915,2647.2,2646.8,0.5976]
[1739193024493,0.58846915,2647.2,2646.8,0.5976]
[1739193024698,0.00566915,2647.2,2646.9,2.62513269]
[1739193025704,0.00566915,2647.2,2647.0,3.2078]
[1739193029504,0.00566915,2647.2,2646.9,2.62513269]
[1739193029705,0.00566915,2647.2,2647.0,3.2078]
[1739193036910,0.00566915,2647.2,2646.9,2.62513269]
[1739193037112,0.00566915,2647.2,2647.0,3.2078]
[1739193038408,0.00566915,2647.2,2646.8,0.5976]
[1739193039704,0.00566915,2647.2,2646.9,2.02293269]
[1739193039910,0.00566915,2647.2,2646.9,2.63023269]
[1739193041617,0.00566915,2647.2,2647.0,3.2078]
[1739193043217,0.00566915,2647.2,2647.1,40.8]
[1739193044513,5.23073269,2648.7,2647.4,0.75533]
[1739193044809,0.5855,2648.4,2647.9,2.02293269]
[1739193045204,3.7933,2648.4,2647.9,2.02293269]
[1739193045610,3.79896915,2648.4,2647.9,2.02860184]
[1739193047521,3.79896915,2648.4,2648.0,0.5724]
[1739193048018,0.00566915,2648.4,2648.2,2.02293269]
[1739193048410,3.2078,2649.1,2648.3,44.0078]
[1739193048612,3.2078,2649.1,2648.6,2.02293269]
[1739193048613,3.7835,2649.1,2648.6,2.02293269]
[1739193048812,3.7835,2649.1,2648.7,0.5724]
[1739193049324,4.3573,2649.1,2648.7,0.5724]
[1739193050115,4.9556,2649.1,2648.6,2.02293269]
[1739193051114,4.3573,2649.1,2648.6,5.23073269]
[1739193051522,4.3573,2649.1,2648.7,0.5585]
[1739193051720,4.3573,2649.1,2648.7,1.1642]
[1739193052518,4.3573,2649.1,2648.6,5.23073269]
[1739193052724,0.6117,2649.0,2648.6,5.23073269]
[1739193053820,0.6117,2649.0,2648.6,3.2078]
[1739193054322,4.3573,2649.1,2648.6,5.23073269]
[1739193062124,4.3573,2649.1,2648.9,2.02293269]
[1739193062325,0.5757,2649.1,2648.9,5.23073269]
[1739193062524,0.5757,2649.1,2649.0,0.5691]
[1739193062724,0.00566915,2649.2,2649.0,1.1372]
[1739193062926,0.00566915,2649.2,2649.0,1.89207]
[1739193063133,0.00566915,2649.2,2649.0,1.1372]
[1739193063524,0.00566915,2649.2,2649.1,0.75486]
[1739193063724,0.5763,2649.6,2649.0,1.89206]
[1739193063930,0.5763,2649.6,2649.4,5.23073269]
[1739193064526,0.5763,2649.6,2649.4,3.2078]
[1739193065030,0.5763,2649.6,2649.2,0.00566915]
[1739193065329,3.2078,2649.5,2649.2,0.00566915]
[1739193066031,0.5676,2649.4,2649.2,0.00566915]
[1739193066231,4.84730186,2649.4,2649.2,0.00566915]
[1739193066532,0.5901,2649.3,2649.2,0.00566915]
[1739193066832,4.54354644,2649.3,2649.2,0.00566915]
[1739193067832,10.54354644,2649.3,2648.4,3.2078]
[1739193068023,3.2078,2649.0,2648.4,3.2078]
[1739193068229,3.2078,2648.7,2648.2,2.58203269]
[1739193068430,3.2078,2648.7,2648.3,40.8]
[1739193070136,3.2078,2648.7,2648.2,2.58770184]
[1739193070937,0.5959,2648.6,2648.2,2.58770184]
[1739193071336,0.5766,2648.5,2648.2,2.58770184]
[1739193072946,0.5766,2648.5,2648.3,3.2078]
[1739193073647,0.5766,2648.5,2648.2,2.58770184]
[1739193078644,0.5959,2648.6,2648.2,2.58770184]
[1739193083044,0.00326247,2648.7,2648.5,2.02293269]
[1739193083347,0.00326247,2648.7,2648.6,1.7713]
[1739193088753,0.00326247,2648.7,2648.6,3.4633]
[1739193089154,0.5534,2649.3,2648.6,3.4633]
[1739193089351,0.5534,2649.3,2649.1,2.02293269]
[1739193089547,0.5534,2649.3,2649.2,1.2014]
[1739193093156,0.5534,2649.3,2649.2,4.4092]
[1739193093455,0.5605,2649.7,2649.2,4.4092]
[1739193093658,1.1472,2649.7,2649.3,0.5934]
[1739193094060,1.1472,2649.7,2649.4,2.02293269]
[1739193094458,0.5867,2649.7,2649.4,2.02293269]
[1739193095259,0.00566915,2649.8,2649.5,3.2078]
[1739193095463,0.00566915,2649.8,2649.6,0.609]
[1739193095763,0.00566915,2649.8,2649.7,0.6106]
[1739193096360,0.00566915,2649.8,2649.7,2.63353269]
[1739193097361,0.00566915,2649.8,2649.7,2.02293269]
[1739193099564,0.00566915,2649.8,2649.5,3.2078]
[1739193100762,0.00566915,2649.8,2649.6,0.6083]
[1739193103458,0.00566915,2649.8,2649.7,0.5563]
[1739193103760,0.00566915,2649.8,2649.6,0.6083]
[1739193104060,0.00566915,2649.8,2649.6,41.4083]
[1739193104764,0.00566915,2649.8,2649.6,0.6083]
[1739193106662,0.00566915,2649.8,2648.9,1.0542466]
[1739193106663,4.23992513,2649.7,2649.2,3.2078]
[1739193106959,0.6059,2649.6,2649.2,4.3964]
[1739193109861,0.6059,2649.6,2649.3,3.2078]
[1739193111167,0.5535,2649.7,2649.4,2.02293269]
[1739193111369,0.5535,2649.7,2649.6,3.2078]
[1739193111667,0.5535,2649.7,2649.4,2.02293269]
[1739193111867,0.5535,2649.7,2649.3,3.2078]
[1739193113458,0.5535,2649.7,2649.2,1.1886]
[1739193113962,0.5918,2649.6,2649.2,1.1886]
[1739193114159,0.6076,2649.5,2649.2,1.1886]
[1739193114370,0.6076,2649.5,2649.2,0.5841]
[1739193116379,0.6076,2649.5,2649.2,1.1624]
[1739193117074,0.6076,2649.5,2649.4,2.02293269]
[1739193118569,0.5535,2649.7,2649.4,2.02293269]
[1739193120276,0.56406915,2649.8,2649.6,3.2078]
[1739193120473,0.00566915,2649.8,2649.7,0.5593]
[1739193120672,3.2078,2650.2,2649.7,3.69993269]
[1739193120872,1.1429,2650.3,2649.9,3.2078]
[1739193121074,1.1429,2650.3,2649.9,3.1915193]
[1739193126179,4.3507,2650.3,2649.9,3.1915193]
[1739193131180,4.3507,2650.3,2650.0,2.02293269]
[1739193131181,1.1429,2650.3,2650.0,2.02293269]
[1739193131699,1.1429,2650.3,2650.1,0.5987]
[1739193132894,1.1429,2650.3,2649.9,3.1915193]
[1739193133087,4.3507,2650.3,2649.8,0.56856915]
[1739193133291,4.37680627,2650.2,2649.8,0.56856915]
[1739193133900,4.3507,2650.3,2649.8,0.56856915]
[1739193135286,0.00566915,2650.4,2649.9,3.2078]
[1739193135489,0.00566915,2650.4,2650.0,2.02293269]
[1739193136089,0.00566915,2650.4,2650.3,2.02293269]
[1739193136295,3.2078,2651.4,2650.3,2.02293269]
[1739193136498,0.575,2651.2,2650.6,5.23073269]
[1739193136698,4.220557,2651.0,2650.6,5.23073269]
[1739193136895,0.575,2651.2,2650.7,40.8]
[1739193137097,0.575,2651.2,2650.8,1.166]
[1739193137300,4.220557,2651.1,2650.8,1.166]
[1739193137601,0.575,2651.2,2650.9,0.6097]
[1739193138504,0.594,2651.3,2650.9,2.63263269]
[1739193138701,0.594,2651.3,2650.9,5.84043269]
[1739193139499,3.2078,2651.0,2650.9,0.6097]
[1739193139700,3.2078,2651.0,2650.8,1.166]
[1739193139701,3.5855,2651.0,2650.8,1.166]
[1739193139899,3.96213,2651.0,2650.6,2.02293269]
[1739193140200,3.96213,2651.0,2650.4,1.1633]
[1739193140201,3.2078,2650.7,2650.4,1.1633]
[1739193140394,0.75447,2650.5,2649.7,5.23073269]
[1739193140595,3.2078,2650.4,2649.8,1.16896915]
[1739193140797,0.6107,2650.3,2649.8,1.16896915]
[1739193140997,8.08058218,2650.4,2650.0,2.02293269]
[1739193141200,2.62643269,2651.0,2650.3,5.23073269]
[1739193141201,0.6107,2650.6,2650.3,5.23073269]
[1739193141502,0.6107,2650.6,2650.4,1.16]
[1739193142301,0.6038,2650.9,2650.4,1.16]
[1739193143306,3.2078,2651.0,2650.4,1.16]
[1739193144698,0.6107,2651.1,2650.6,5.23073269]
[1739193144902,0.6107,2651.1,2650.7,0.5949]
[1739193145104,0.5725,2651.2,2650.7,0.5949]
[1739193145407,0.5725,2651.2,2650.8,0.5706]
[1739193145605,0.5725,2651.2,2650.9,0.5689]
[1739193146606,0.5725,2651.2,2651.0,40.8]
[1739193146801,0.5725,2651.2,2650.9,0.5689]
[1739193147403,0.5725,2651.2,2651.0,40.8]
[1739193147609,0.5725,2651.2,2650.9,0.5689]
[1739193148311,0.5725,2651.2,2650.9,41.3689]
[1739193149506,0.5725,2651.2,2650.9,0.5689]
[1739193150008,3.2078,2651.6,2650.9,5.79963269]
[1739193150310,4.06245118,2651.5,2650.9,5.79963269]
[1739193151112,4.06245118,2651.5,2651.2,2.02293269]
[1739193151311,4.06245118,2651.5,2651.3,0.5833]
[1739193153012,4.06245118,2651.5,2651.4,3.2078]
[1739193153207,4.3938,2652.3,2651.4,4.3399]
[1739193153407,4.3938,2652.3,2651.8,2.02293269]
[1739193153709,4.3938,2652.3,2651.4,4.3399]
[1739193153710,8.35498563,2652.3,2651.5,2.02293269]
[1739193154911,4.3938,2652.3,2651.5,2.02293269]
[1739193156517,4.3938,2652.3,2651.8,2.02293269]
[1739193156816,4.3938,2652.3,2651.9,0.5696]
[1739193158310,3.2078,2652.3,2652.1,2.02293269]
[1739193158514,3.2078,2652.8,2652.1,2.02293269]
[1739193158818,3.95597561,2652.7,2652.2,40.8]
[1739193159214,3.2078,2654.0,2652.6,5.23073269]
[1739193159419,0.5555,2653.4,2653.1,2.02293269]
[1739193159613,3.95597561,2653.6,2653.1,5.23073269]
[1739193159812,0.5555,2653.8,2653.4,2.02293269]
[1739193160220,7.52175547,2653.7,2653.1,5.23073269]
[1739193160420,7.52175547,2653.7,2653.1,2.02293269]
[1739193160623,0.5515,2653.6,2653.1,2.02293269]
[1739193165617,3.2078,2653.4,2653.1,2.02293269]
[1739193165921,0.5515,2653.6,2653.1,2.02293269]
[1739193166522,3.2078,2653.4,2653.1,2.02293269]
[1739193166916,4.00539651,2653.3,2653.1,2.02293269]
[1739193167118,0.5962,2653.2,2653.0,0.00565824]
[1739193167319,3.2078,2653.1,2653.0,0.00565824]
[1739193167515,0.5705,2653.1,2653.0,0.00565824]
[1739193167712,7.72904523,2653.1,2653.0,0.00565824]
[1739193168319,0.5705,2653.1,2653.0,0.00565824]
[1739193168522,3.2078,2654.1,2653.0,5.23639093]
[1739193168714,3.2078,2654.1,2654.0,2.02293269]
[1739193174529,3.2078,2654.1,2653.7,2.02293269]
[1739193176431,0.5635,2654.3,2653.7,2.02293269]
[1739193176825,3.92137089,2654.2,2653.7,2.02293269]
[1739193177027,0.5635,2654.3,2653.7,2.02293269]
[1739193177530,0.5635,2654.3,2654.0,2.02293269]
[1739193178335,3.2078,2654.4,2654.0,2.02293269]
[1739193178633,3.2078,2654.4,2654.3,2.02293269]
[1739193179136,3.2078,2654.4,2654.1,0.579]
[1739193179524,3.96116,2654.4,2654.0,2.02293269]
[1739193179732,3.2078,2654.1,2654.0,2.02293269]
[1739193180234,4.3986,2654.1,2654.0,2.02293269]
[1739193181235,1.1908,2654.1,2654.0,2.02293269]
[1739193181430,4.3986,2654.1,2654.0,2.02293269]
[1739193181829,4.3986,2654.1,2653.3,2.02293269]
[1739193181830,8.58121805,2654.1,2653.3,2.02293269]
[1739193182035,3.2078,2653.6,2653.3,2.02293269]
[1739193182230,0.576,2653.5,2653.3,2.02293269]
[1739193184235,0.576,2653.5,2653.2,0.5603]
[1739193184438,0.6048,2653.4,2653.2,0.5603]
[1739193185026,0.6048,2653.4,2653.0,42.82859093]
[1739193185233,3.2078,2653.3,2653.0,42.82859093]
[1739193185432,0.6048,2653.4,2653.0,42.82859093]
[1739193185838,0.6048,2653.4,2653.0,2.02859093]
[1739193186336,7.47614999,2653.3,2653.0,2.02859093]
[1739193186533,7.47614999,2653.3,2653.0,0.00565824]
[1739193186835,8.22981999,2653.3,2653.0,0.00565824]
[1739193187227,7.47614999,2653.3,2653.0,0.00565824]
[1739193187629,0.5682,2653.2,2653.0,0.00565824]
[1739193187834,0.75372,2653.1,2653.0,0.00565824]
[1739193188038,5.11626069,2653.1,2653.0,0.00565824]
[1739193188929,4.36254069,2653.1,2653.0,0.00565824]
[1739193189130,10.36254069,2653.1,2653.0,0.00565824]
[1739193189337,11.17882234,2653.1,2653.0,0.00565824]
[1739193189544,0.75375,2653.0,2652.2,1.1302]
[1739193189730,3.2078,2652.6,2652.2,1.1302]
[1739193190035,8.10857985,2652.9,2652.2,1.1302]
[1739193190236,3.7761,2652.9,2652.2,1.1302]
[1739193190435,4.33247985,2652.8,2652.2,1.1302]
[1739193190833,4.33247985,2652.8,2652.2,1.13585824]
[1739193191436,4.33247985,2652.8,2652.4,2.02293269]
[1739193191641,3.7761,2652.9,2652.4,2.02293269]
[1739193192647,3.7761,2652.9,2652.5,0.5757]
[1739193195641,3.2078,2652.9,2652.7,2.02293269]
[1739193196046,3.2078,2652.9,2652.8,0.5728]
[1739193196941,3.2078,2652.9,2652.5,0.5757]
[1739193197143,3.2078,2652.9,2652.5,1.1485]
[1739193197739,3.2078,2653.2,2652.8,2.02293269]
[1739193198145,3.2078,2653.2,2653.1,2.02293269]
[1739193198438,0.00562189,2653.3,2653.1,5.23073269]
[1739193198643,0.00562189,2653.3,2653.2,1.1487]
[1739193201240,0.5687,2654.0,2653.2,1.1487]
[1739193201442,0.5687,2654.0,2653.7,2.02293269]
[1739193202446,3.2078,2654.2,2653.8,0.6043]
[1739193204552,3.2078,2654.2,2654.0,2.02293269]
[1739193204849,0.5959,2654.3,2654.0,2.02293269]
[1739193205249,3.8037,2654.3,2654.0,2.02293269]
[1739193205548,0.5959,2654.3,2654.0,2.02293269]
[1739193205747,3.8037,2654.3,2654.0,2.02293269]
[1739193206143,3.8,2654.6,2654.0,2.02293269]
[1739193206552,3.97425041,2654.5,2654.0,2.02293269]
[1739193207152,3.97425041,2654.5,2653.8,0.6043]
[1739193207455,3.2078,2654.2,2653.8,0.6043]
[1739193207750,0.5824,2654.1,2653.8,0.6043]
[1739193207953,1.1438,2654.1,2653.8,0.6043]
[1739193208547,1.1438,2654.1,2653.7,2.63183269]
[1739193208548,1.1438,2654.1,2653.7,2.02293269]
[1739193208751,3.2078,2653.9,2653.6,0.00565824]
[1739193209752,3.2078,2653.9,2653.7,2.02293269]
[1739193210849,0.5614,2654.1,2653.7,2.02293269]
[1739193211050,3.2078,2654.2,2653.7,2.02293269]
[1739193213151,0.5599,2654.1,2653.7,2.02293269]
[1739193214252,3.2078,2654.5,2654.0,2.02293269]
[1739193214553,3.8063,2654.5,2654.0,2.02293269]
[1739193214953,3.8063,2654.5,2654.1,0.5533]
[1739193215157,3.8063,2654.5,2654.3,2.02293269]
[1739193215546,3.2078,2654.5,2654.3,2.02293269]
[1739193215951,3.2078,2654.5,2654.3,1.92688169]
[1739193216145,3.8063,2654.5,2654.3,1.92688169]
[1739193216353,3.2078,2654.5,2654.3,1.92688169]
[1739193216656,3.2078,2654.5,2654.4,2.02293269]
[1739193220553,3.2078,2654.5,2654.1,2.57623269]
[1739193220753,0.5845,2654.4,2654.1,2.57623269]
[1739193221358,0.5845,2654.4,2654.1,2.02293269]
[1739193222963,3.2078,2654.5,2654.1,2.02293269]
[1739193223164,3.2078,2654.5,2654.4,2.02293269]
[1739193224061,3.2078,2654.5,2654.4,2.58363269]
[1739193224562,3.2078,2654.8,2654.4,2.58363269]
[1739193225763,3.2078,2654.8,2654.4,2.02293269]
[1739193226257,3.2078,2654.8,2654.3,0.5754]
[1739193226454,0.3777,2654.7,2654.1,2.02293269]
[1739193226650,0.9812,2654.7,2654.1,2.02293269]
[1739193226855,3.2078,2654.5,2654.1,2.02293269]
[1739193227360,0.5944,2654.6,2654.1,2.02293269]
[1739193227757,0.6019,2654.5,2654.1,2.02293269]
[1739193228964,3.2078,2654.8,2654.4,2.02293269]
[1739193229165,3.2078,2654.8,2654.7,2.02293269]
[1739193229962,3.2078,2654.8,2654.5,0.5611]
[1739193230164,0.6071,2654.7,2654.5,0.5611]
[1739193231464,0.6071,2654.7,2654.4,2.02293269]
[1739193237374,3.2078,2654.8,2654.5,0.5708]
[1739193237667,3.2078,2654.8,2654.7,2.02293269]
[1739193238173,0.5908,2655.2,2654.7,12.91673269]
[1739193238174,3.2078,2655.2,2654.7,12.91673269]
[1739193238361,3.2078,2655.2,2655.1,2.02293269]
[1739193238560,3.2078,2655.2,2655.1,42.82293269]
[1739193239361,3.2078,2655.2,2655.1,40.8]
[1739193240265,3.2078,2655.2,2654.9,2.02293269]
[1739193240767,3.2078,2655.2,2655.0,40.8]
[1739193241169,0.5749,2655.1,2654.9,2.02293269]
[1739193241868,1.1531,2655.1,2654.9,2.02293269]
[1739193242468,1.1531,2655.1,2654.8,0.5581]
[1739193242772,1.7452,2655.1,2654.8,0.5581]
[1739193246470,1.7452,2655.1,2654.6,2.02293269]
[1739193246672,1.7452,2655.1,2654.6,2.61993269]
[1739193248073,3.2078,2654.8,2654.6,2.61993269]
[1739193248272,3.2078,2654.8,2654.3,2.02293269]
[1739193248478,0.5578,2654.7,2654.4,40.8]
[1739193248673,0.5599,2654.6,2654.4,40.8]
[1739193249372,0.5599,2654.6,2654.3,2.02293269]
[1739193249772,0.5599,2654.6,2654.3,42.82293269]
[1739193259191,0.5599,2654.6,2654.3,2.02293269]
[1739193260087,0.5599,2654.6,2654.2,3.7791]
[1739193260289,7.27142691,2654.5,2654.0,42.82293269]
[1739193260597,7.27142691,2654.5,2653.9,0.5719]
[1739193260793,3.2078,2654.2,2653.9,0.5719]
[1739193261097,1.1675,2654.1,2653.8,40.8]
[1739193261387,5.22560287,2654.1,2653.8,40.8]
[1739193262385,5.22560287,2654.1,2653.7,2.59483269]
[1739193262586,5.82110287,2654.1,2653.6,0.00565824]
[1739193262892,0.3777,2653.8,2653.6,0.00565824]
[1739193263090,0.9568,2653.7,2653.6,0.00565824]
[1739193263293,4.90231924,2653.7,2653.6,0.00565824]
[1739193263485,10.90231924,2653.7,2652.8,6.95453269]
[1739193263685,3.2078,2653.4,2652.8,6.95453269]
[1739193263882,3.2078,2653.4,2653.1,2.02293269]
[1739193264388,3.2078,2653.4,2653.2,0.5597]
[1739193264783,1.2104,2653.6,2653.2,0.5597]
[1739193264784,0.60535824,2653.6,2653.2,0.5597]
[1739193265090,0.60535824,2653.6,2653.3,0.5603]
[1739193265293,0.60535824,2653.6,2653.2,0.5597]
[1739193266901,0.75369,2653.2,2652.2,2.02293269]
[1739193267099,3.2078,2652.8,2652.0,3.763]
[1739193267299,0.5988,2652.7,2652.0,3.763]
[1739193267699,0.5986,2652.6,2652.0,3.763]
[1739193268001,0.5986,2652.6,2652.1,0.00565824]
[1739193268295,7.5064826,2652.5,2652.1,0.00565824]
[1739193269093,8.0610826,2652.5,2652.1,0.00565824]
[1739193269295,3.2078,2652.2,2652.1,0.00565824]
[1739193270194,3.7624,2652.5,2652.1,0.00565824]
[1739193270602,3.2078,2652.2,2652.1,0.00565824]
[1739193272699,3.7624,2652.5,2652.1,0.00565824]
[1739193273092,4.36946238,2652.4,2652.1,0.00565824]
[1739193278501,3.2078,2652.2,2652.1,0.00565824]
[1739193278994,7.98006159,2652.2,2651.7,0.5552]
[1739193279199,1.1476,2652.1,2651.7,0.5552]
[1739193279396,1.9016,2652.1,2651.7,0.5552]
[1739193279607,4.20474366,2652.0,2651.7,0.5552]
[1739193280304,1.15325824,2652.1,2651.7,0.5552]
[1739193280698,0.00565824,2652.1,2651.7,0.5552]
[1739193282902,3.99615527,2652.0,2651.7,0.5552]
[1739193283304,0.6064,2651.9,2651.7,0.5552]
[1739193283512,0.5656,2651.8,2651.7,0.5552]
[1739193283697,0.5656,2651.8,2651.6,0.00565824]
[1739193283903,5.67092379,2651.8,2651.6,0.00565824]
[1739193284108,4.91681379,2651.8,2651.6,0.00565824]
[1739193285698,0.5656,2651.8,2651.6,0.00565824]
[1739193286303,0.00565824,2652.1,2651.6,5.23639093]
[1739193286611,0.00565824,2652.1,2652.0,3.2078]
[1739193286811,0.00565824,2652.1,2651.9,2.02293269]
[1739193289314,0.00565824,2652.1,2652.0,40.8]
[1739193291212,0.00565824,2652.1,2651.9,2.02293269]
[1739193291508,0.00565824,2652.1,2651.7,1.8127]
[1739193291714,3.2078,2652.0,2651.7,1.8127]
[1739193292108,7.1311486,2652.0,2651.7,1.21]
[1739193292415,3.9233486,2652.0,2651.7,1.21]
[1739193292620,3.2078,2651.9,2651.7,1.21]
[1739193292812,3.2078,2651.9,2651.7,0.6084]
[1739193293014,0.5704,2651.8,2651.7,0.6084]
[1739193294817,0.5704,2651.8,2651.6,0.00565824]
[1739193295011,3.75775269,2651.7,2650.7,3.2078]
[1739193295212,3.2078,2651.2,2650.7,3.2078]
[1739193296418,3.2078,2651.2,2650.7,3.21345824]
[1739193297513,0.6099,2651.1,2650.7,3.21345824]
[1739193298514,3.2078,2651.5,2650.7,3.21345824]
[1739193298711,3.2078,2651.5,2650.8,2.02293269]
[1739193300012,4.27093953,2651.4,2650.7,3.21345824]
[1739193300214,3.2078,2651.5,2650.7,3.21345824]
[1739193300617,2.02293269,2651.4,2650.7,3.21345824]
[1739193300817,2.60313269,2651.4,2650.7,3.21345824]
[1739193301014,0.5557,2651.3,2650.7,3.21345824]
[1739193301216,0.5557,2651.3,2650.8,2.02293269]
[1739193301514,3.2078,2651.5,2650.8,2.02293269]
[1739193301818,0.5711,2651.6,2651.1,2.02293269]
[1739193302022,0.5711,2651.6,2651.2,0.5734]
[1739193302520,4.28077107,2651.5,2651.2,0.5734]
[1739193302721,3.2078,2651.4,2651.2,0.5734]
[1739193303222,4.35180456,2651.3,2650.8,1.1301]
[1739193303421,3.2078,2651.4,2650.8,3.76383269]
[1739193303824,3.2078,2651.4,2651.0,3.2078]
[1739193304518,0.5711,2651.6,2651.0,3.2078]
[1739193304720,3.2078,2651.3,2650.8,1.7409]
[1739193306023,0.3777,2651.5,2650.8,1.7409]
[1739193306421,4.3915591,2651.5,2650.8,1.7409]
[1739193307524,3.7789,2651.6,2650.8,3.76383269]
[1739193307719,0.5711,2651.6,2651.0,3.2078]
[1739193310628,0.5942,2651.7,2651.1,2.02293269]
[1739193311121,0.5942,2651.7,2651.2,0.5642]
[1739193311321,0.5942,2651.7,2651.3,1.168]
[1739193312524,0.5942,2651.7,2651.3,0.5635]
[1739193312720,4.10081105,2651.6,2651.2,0.5642]
[1739193313126,3.2078,2651.5,2650.9,0.5772]
[1739193313326,3.2078,2651.5,2651.0,0.5734]
[1739193313522,3.2078,2651.2,2651.0,0.5734]
[1739193313731,3.2078,2651.2,2650.7,0.00565824]
[1739193313928,1.1538,2651.1,2650.7,0.00565824]
[1739193314128,3.2078,2650.9,2650.2,3.2078]
[1739193314331,3.2078,2650.9,2650.3,0.5734]
[1739193314635,4.21515644,2650.8,2650.3,41.3734]
[1739193315334,4.21515644,2650.8,2650.3,41.37905824]
[1739193315729,4.21515644,2650.8,2650.3,43.40199093]
[1739193316035,3.2078,2651.5,2650.6,2.02293269]
[1739193316332,3.2078,2651.5,2650.3,41.37905824]
[1739193316333,3.2078,2651.5,2650.9,2.02293269]
[1739193316534,3.2078,2651.5,2651.0,0.6083]
[1739193319332,1.1855,2651.6,2651.0,0.6083]
[1739193320935,1.1855,2651.6,2651.1,3.2078]
[1739193321238,0.5785,2651.6,2651.2,1.169]
[1739193322139,3.2078,2651.8,2651.2,3.19193269]
[1739193322437,3.7721,2651.8,2651.2,3.19193269]
[1739193326840,3.7721,2651.8,2651.3,40.8]
[1739193327339,3.7721,2651.8,2651.4,0.5991]